[Event "*** Titled Tuesday Blitz"]
[Site "Chess.com"]
[Date "2018.09.04"]
[Round "9"]
[White "335394862"]
[Black "NemtsevIgor"]
[Result "0-1"]
[WhiteElo "2300"]
[BlackElo "2372"]
[TimeControl "180+2"]
[EndTime "15:40:46 PDT"]
[Termination "NemtsevIgor won by checkmate"]

1. e4 {[%clk 0:03:01.9]} 1... c6 {[%clk 0:02:59.4]} 2. Nf3 {[%clk 0:03:02.6]}
2... d5 {[%clk 0:03:00.5]} 3. Nc3 {[%clk 0:03:04.2]} 3... Bg4 {[%clk 0:03:00]}
4. h3 {[%clk 0:03:05.4]} 4... Bh5 {[%clk 0:03:01.2]} 5. exd5 {[%clk 0:03:03.2]}
5... cxd5 {[%clk 0:03:01.3]} 6. g4 {[%clk 0:03:04.3]} 6... Bg6 {[%clk
0:03:01.9]} 7. Bb5+ {[%clk 0:03:05.2]} 7... Nc6 {[%clk 0:03:03.1]} 8. Ne5 {[%clk
0:03:05.8]} 8... Rc8 {[%clk 0:03:04.1]} 9. d4 {[%clk 0:03:04.5]} 9... e6 {[%clk
0:03:05.2]} 10. h4 {[%clk 0:02:58]} 10... f6 {[%clk 0:03:05.1]} 11. Nxg6 {[%clk
0:02:56.9]} 11... hxg6 {[%clk 0:03:07]} 12. Be3 {[%clk 0:02:58]} 12... g5 {[%clk
0:03:04.6]} 13. Bd3 {[%clk 0:02:58.3]} 13... gxh4 {[%clk 0:03:02.5]} 14. Bg6+
{[%clk 0:02:58.5]} 14... Kd7 {[%clk 0:03:03.7]} 15. Qf3 {[%clk 0:02:49.6]} 15...
Bb4 {[%clk 0:02:55.4]} 16. O-O {[%clk 0:02:28.9]} 16... Nge7 {[%clk 0:02:44]}
17. Bf7 {[%clk 0:02:11.4]} 17... Bxc3 {[%clk 0:02:33.1]} 18. bxc3 {[%clk
0:02:11]} 18... Qf8 {[%clk 0:02:33.7]} 19. Bxe6+ {[%clk 0:01:51.6]} 19... Kxe6
{[%clk 0:02:32.6]} 20. Rfe1 {[%clk 0:01:52.5]} 20... Kf7 {[%clk 0:02:31.6]} 21.
g5 {[%clk 0:01:51.5]} 21... Qd8 {[%clk 0:02:22.2]} 22. Kh1 {[%clk 0:01:47.9]}
22... Qd7 {[%clk 0:02:21]} 23. gxf6 {[%clk 0:01:45.5]} 23... gxf6 {[%clk
0:02:21.9]} 24. c4 {[%clk 0:01:38.6]} 24... dxc4 {[%clk 0:02:10.9]} 25. d5
{[%clk 0:01:36.9]} 25... Qxd5 {[%clk 0:02:09.7]} 26. Qxd5+ {[%clk 0:01:36.9]}
26... Nxd5 {[%clk 0:02:10.2]} 27. Bc5 {[%clk 0:01:37.7]} 27... Rhe8 {[%clk
0:02:08]} 28. Red1 {[%clk 0:01:36.6]} 28... Rcd8 {[%clk 0:02:03.5]} 29. Rg1
{[%clk 0:01:33.3]} 29... b6 {[%clk 0:02:02.3]} 30. Ba3 {[%clk 0:01:33.6]} 30...
Nd4 {[%clk 0:01:59]} 31. Bb2 {[%clk 0:01:27.3]} 31... c3 {[%clk 0:01:58]} 32.
Bc1 {[%clk 0:01:24.2]} 32... Nxc2 {[%clk 0:01:57.7]} 33. Rb1 {[%clk 0:01:25.5]}
33... Ne1 {[%clk 0:01:50.3]} 34. Bh6 {[%clk 0:01:16.4]} 34... Nf3 {[%clk
0:01:44.8]} 35. Rg7+ {[%clk 0:01:13.8]} 35... Ke6 {[%clk 0:01:46]} 36. Kg2
{[%clk 0:01:12.5]} 36... Nd4 {[%clk 0:01:29.6]} 37. Rxa7 {[%clk 0:01:05.6]}
37... c2 {[%clk 0:01:29.3]} 38. Rc1 {[%clk 0:01:00.8]} 38... Rg8+ {[%clk
0:01:24.5]} 39. Kf1 {[%clk 0:01:01.2]} 39... Kf5 {[%clk 0:01:17]} 40. Ra4 {[%clk
0:00:57.2]} 40... Nc3 {[%clk 0:01:10.1]} 41. Rc4 {[%clk 0:00:49.1]} 41... Nce2
{[%clk 0:01:08.6]} 42. Rxd4 {[%clk 0:00:31.9]} 42... Nxd4 {[%clk 0:01:06.8]} 43.
Be3 {[%clk 0:00:31.4]} 43... h3 {[%clk 0:01:04.6]} 44. Bxd4 {[%clk 0:00:29.1]}
44... Rxd4 {[%clk 0:01:04.7]} 45. Ke2 {[%clk 0:00:28.3]} 45... Rd1 {[%clk
0:01:03.5]} 46. Rxc2 {[%clk 0:00:24.6]} 46... h2 {[%clk 0:01:04.2]} 47. Kxd1
{[%clk 0:00:26.5]} 47... h1=Q+ {[%clk 0:01:03.6]} 48. Ke2 {[%clk 0:00:28.4]}
48... Re8+ {[%clk 0:01:03]} 49. Kd2 {[%clk 0:00:28.9]} 49... Qe1+ {[%clk
0:01:02.7]} 50. Kd3 {[%clk 0:00:30.3]} 50... Qe4+ {[%clk 0:00:59.2]} 51. Kd2
{[%clk 0:00:31.4]} 51... Rd8+ {[%clk 0:00:59.5]} 52. Kc1 {[%clk 0:00:31.6]}
52... Rd4 {[%clk 0:00:55.8]} 53. f3 {[%clk 0:00:29.4]} 53... Qe3+ {[%clk
0:00:54.4]} 54. Kb1 {[%clk 0:00:25.4]} 54... Rb4+ {[%clk 0:00:54.1]} 55. Rb2
{[%clk 0:00:22.5]} 55... Qd3+ {[%clk 0:00:55.2]} 56. Kc1 {[%clk 0:00:22.1]}
56... Rc4+ {[%clk 0:00:55.6]} 57. Rc2 {[%clk 0:00:20.5]} 57... Qxc2# {[%clk
0:00:56.7]} 0-1

[Event "*** Titled Tuesday Blitz"]
[Site "Chess.com"]
[Date "2018.09.04"]
[Round "9"]
[White "snowlord"]
[Black "ulises2013"]
[Result "0-1"]
[WhiteElo "2705"]
[BlackElo "2607"]
[TimeControl "180+2"]
[EndTime "15:40:55 PDT"]
[Termination "ulises2013 won by resignation"]

1. d4 {[%clk 0:03:01.9]} 1... Nf6 {[%clk 0:02:56.3]} 2. Nf3 {[%clk 0:03:03.8]}
2... e6 {[%clk 0:02:50.2]} 3. Bg5 {[%clk 0:03:01.6]} 3... Be7 {[%clk 0:02:47.5]}
4. c4 {[%clk 0:03:01.5]} 4... O-O {[%clk 0:02:44.2]} 5. e3 {[%clk 0:02:53.7]}
5... b6 {[%clk 0:02:38.3]} 6. Nc3 {[%clk 0:02:48.9]} 6... Bb7 {[%clk 0:02:39.1]}
7. Rc1 {[%clk 0:02:46.4]} 7... c5 {[%clk 0:02:13.7]} 8. d5 {[%clk 0:02:27.5]}
8... Nxd5 {[%clk 0:02:12.6]} 9. cxd5 {[%clk 0:02:25.1]} 9... Bxg5 {[%clk
0:02:12.1]} 10. Bd3 {[%clk 0:02:12.2]} 10... Bf6 {[%clk 0:02:08.4]} 11. Be4
{[%clk 0:02:12.6]} 11... Bxc3+ {[%clk 0:01:33.6]} 12. Rxc3 {[%clk 0:01:56.1]}
12... e5 {[%clk 0:01:28.4]} 13. Nxe5 {[%clk 0:01:38.4]} 13... Qe8 {[%clk
0:01:08.5]} 14. f4 {[%clk 0:00:15.6]} 14... d6 {[%clk 0:01:02.4]} 15. O-O {[%clk
0:00:16.5]} 15... dxe5 {[%clk 0:00:59.6]} 16. Qh5 {[%clk 0:00:11.1]} 16... g6
{[%clk 0:00:58.3]} 17. Qh6 {[%clk 0:00:08.9]} 17... f5 {[%clk 0:00:55.1]} 18.
Bc2 {[%clk 0:00:05.2]} 18... Nd7 {[%clk 0:00:53.7]} 19. e4 {[%clk 0:00:06.2]}
19... fxe4 {[%clk 0:00:41.2]} 20. Rh3 {[%clk 0:00:07]} 20... Qf7 {[%clk
0:00:31.2]} 21. Bb3 {[%clk 0:00:06.6]} 21... Qg7 {[%clk 0:00:22.4]} 22. Qh4
{[%clk 0:00:07.8]} 22... exf4 {[%clk 0:00:21]} 23. d6+ {[%clk 0:00:08.9]} 23...
Kh8 {[%clk 0:00:22.3]} 24. Rxf4 {[%clk 0:00:09.9]} 24... Rxf4 {[%clk 0:00:21.9]}
25. Qxf4 {[%clk 0:00:10.9]} 25... Rf8 {[%clk 0:00:23.2]} 26. Qe3 {[%clk
0:00:11.9]} 26... Qd4 {[%clk 0:00:22.8]} 27. a4 {[%clk 0:00:06.9]} 27... Qxe3+
{[%clk 0:00:21.5]} 28. Rxe3 {[%clk 0:00:08.8]} 28... Rf6 {[%clk 0:00:22.5]} 29.
a5 {[%clk 0:00:06.1]} 29... Rxd6 {[%clk 0:00:23]} 30. g4 {[%clk 0:00:07.7]}
30... bxa5 {[%clk 0:00:23]} 31. Kf2 {[%clk 0:00:08.1]} 31... Rd3 {[%clk
0:00:23.6]} 32. Bc4 {[%clk 0:00:08.3]} 32... Rxe3 {[%clk 0:00:22.3]} 33. Kxe3
{[%clk 0:00:10.2]} 33... Ne5 {[%clk 0:00:23.7]} 34. Be6 {[%clk 0:00:11.3]} 34...
Kg7 {[%clk 0:00:24.5]} 35. g5 {[%clk 0:00:12.9]} 35... h6 {[%clk 0:00:24.2]} 36.
h4 {[%clk 0:00:14.2]} 36... hxg5 {[%clk 0:00:25.4]} 37. hxg5 {[%clk 0:00:15.2]}
37... Kf8 {[%clk 0:00:26.9]} 38. Kf4 {[%clk 0:00:16]} 38... Nf7 {[%clk
0:00:24.4]} 39. Bd7 {[%clk 0:00:10.6]} 39... Ke7 {[%clk 0:00:24.5]} 40. Ba4
{[%clk 0:00:12.5]} 40... Kd6 {[%clk 0:00:24.1]} 41. Bb3 {[%clk 0:00:12.8]} 41...
Ne5 {[%clk 0:00:24.7]} 42. Bg8 {[%clk 0:00:13.9]} 42... Bd5 {[%clk 0:00:25.6]}
43. Bh7 {[%clk 0:00:13.9]} 43... a4 {[%clk 0:00:26.2]} 44. Ke3 {[%clk
0:00:15.1]} 44... a5 {[%clk 0:00:24.7]} 45. Kf4 {[%clk 0:00:14.7]} 45... c4
{[%clk 0:00:25.8]} 46. Ke3 {[%clk 0:00:15.5]} 46... c3 {[%clk 0:00:27.2]} 47.
bxc3 {[%clk 0:00:07]} 47... a3 {[%clk 0:00:28.2]} 48. c4 {[%clk 0:00:07.7]}
48... Bxc4 {[%clk 0:00:28.3]} 0-1

[Event "*** Titled Tuesday Blitz"]
[Site "Chess.com"]
[Date "2018.09.04"]
[Round "9"]
[White "Arash_Tahbaz"]
[Black "Eagle_pada"]
[Result "1-0"]
[WhiteElo "2774"]
[BlackElo "2700"]
[TimeControl "180+2"]
[EndTime "15:41:07 PDT"]
[Termination "Arash_Tahbaz won by resignation"]

1. d4 {[%clk 0:03:01.9]} 1... Nf6 {[%clk 0:02:58.6]} 2. Nf3 {[%clk 0:03:02.8]}
2... e6 {[%clk 0:02:58.5]} 3. Bf4 {[%clk 0:03:03.1]} 3... d5 {[%clk 0:02:59.2]}
4. e3 {[%clk 0:03:03.6]} 4... Bd6 {[%clk 0:03:00.3]} 5. Bd3 {[%clk 0:03:01.9]}
5... c5 {[%clk 0:02:58.6]} 6. c3 {[%clk 0:03:01.8]} 6... Bxf4 {[%clk 0:02:57.7]}
7. exf4 {[%clk 0:02:59.2]} 7... Qb6 {[%clk 0:02:58]} 8. Qc2 {[%clk 0:02:53.4]}
8... cxd4 {[%clk 0:02:56.6]} 9. Nxd4 {[%clk 0:02:52.4]} 9... Nc6 {[%clk
0:02:57.9]} 10. Nxc6 {[%clk 0:02:49]} 10... bxc6 {[%clk 0:02:57.6]} 11. O-O
{[%clk 0:02:45.8]} 11... Ba6 {[%clk 0:02:58.8]} 12. Bxa6 {[%clk 0:02:42.1]}
12... Qxa6 {[%clk 0:03:00.7]} 13. Nd2 {[%clk 0:02:43]} 13... O-O {[%clk
0:02:58.3]} 14. Nf3 {[%clk 0:02:43.8]} 14... Ne4 {[%clk 0:02:57.3]} 15. Rfe1
{[%clk 0:02:41.3]} 15... Qb6 {[%clk 0:02:53.4]} 16. c4 {[%clk 0:02:37]} 16...
Rab8 {[%clk 0:02:51.3]} 17. b3 {[%clk 0:02:37.7]} 17... Rfd8 {[%clk 0:02:50.8]}
18. Ne5 {[%clk 0:02:33.5]} 18... Rbc8 {[%clk 0:02:45.2]} 19. Rad1 {[%clk
0:02:31.2]} 19... Qa5 {[%clk 0:02:41.6]} 20. h4 {[%clk 0:02:17.7]} 20... Re8
{[%clk 0:02:31]} 21. Rc1 {[%clk 0:02:13.5]} 21... Qd8 {[%clk 0:02:29]} 22. g3
{[%clk 0:02:13]} 22... f6 {[%clk 0:02:30]} 23. Nf3 {[%clk 0:02:10.7]} 23... Qb6
{[%clk 0:02:29.1]} 24. Kg2 {[%clk 0:02:07.9]} 24... Qb7 {[%clk 0:02:30.5]} 25.
h5 {[%clk 0:02:02.5]} 25... c5 {[%clk 0:02:29]} 26. Qd3 {[%clk 0:01:56.9]} 26...
Rcd8 {[%clk 0:02:24.8]} 27. Re2 {[%clk 0:01:50.1]} 27... Qf7 {[%clk 0:02:23.6]}
28. h6 {[%clk 0:01:45.1]} 28... gxh6 {[%clk 0:02:07.2]} 29. cxd5 {[%clk
0:01:43.6]} 29... exd5 {[%clk 0:02:09]} 30. Nd2 {[%clk 0:01:43.2]} 30... f5
{[%clk 0:01:58.8]} 31. Nf3 {[%clk 0:01:39.6]} 31... d4 {[%clk 0:01:57.3]} 32.
Ne5 {[%clk 0:01:38.4]} 32... Qd5 {[%clk 0:01:51.7]} 33. f3 {[%clk 0:01:35.9]}
33... Nc3 {[%clk 0:01:51.7]} 34. Ree1 {[%clk 0:01:33.7]} 34... Qe6 {[%clk
0:01:50.7]} 35. Ng4 {[%clk 0:01:23.6]} 35... Qg6 {[%clk 0:01:45.6]} 36. Rxe8+
{[%clk 0:01:12.8]} 36... Rxe8 {[%clk 0:01:47.5]} 37. Qc4+ {[%clk 0:01:12.4]}
37... Kh8 {[%clk 0:01:46.2]} 38. Ne5 {[%clk 0:01:13.8]} 38... Qg8 {[%clk
0:01:39.4]} 39. Qa6 {[%clk 0:01:01.7]} 39... Qg7 {[%clk 0:01:35.9]} 40. Kf2
{[%clk 0:00:59.6]} 40... Rg8 {[%clk 0:01:34.4]} 41. Rg1 {[%clk 0:00:57.8]} 41...
Qe7 {[%clk 0:01:30.6]} 42. Rh1 {[%clk 0:00:52.8]} 42... Qg7 {[%clk 0:01:28.2]}
43. Rh3 {[%clk 0:00:50.4]} 43... Nd1+ {[%clk 0:01:26.1]} 44. Ke2 {[%clk
0:00:49.6]} 44... Nc3+ {[%clk 0:01:25.4]} 45. Kf1 {[%clk 0:00:43.4]} 45... Nd5
{[%clk 0:01:20.5]} 46. Qe6 {[%clk 0:00:34]} 46... Ne3+ {[%clk 0:01:16.1]} 47.
Kf2 {[%clk 0:00:26.7]} 47... Qf8 {[%clk 0:01:16.6]} 48. Rxh6 {[%clk 0:00:21.9]}
48... Rg7 {[%clk 0:01:14.7]} 49. Ng6+ {[%clk 0:00:20.8]} 49... Rxg6 {[%clk
0:01:14.3]} 50. Qxg6 {[%clk 0:00:22.7]} 50... Qe7 {[%clk 0:01:12.3]} 51. Qf6+
{[%clk 0:00:24]} 51... Qxf6 {[%clk 0:01:11.9]} 52. Rxf6 {[%clk 0:00:25.9]} 52...
Kg7 {[%clk 0:01:08.2]} 53. Rc6 {[%clk 0:00:23.8]} 53... c4 {[%clk 0:01:03.7]}
54. bxc4 {[%clk 0:00:23.4]} 54... Nd1+ {[%clk 0:01:04.6]} 55. Ke1 {[%clk
0:00:23]} 55... Nc3 {[%clk 0:01:06.3]} 56. Rd6 {[%clk 0:00:20.4]} 56... Nxa2
{[%clk 0:01:05.4]} 57. Rxd4 {[%clk 0:00:21.8]} 57... a5 {[%clk 0:01:04.3]} 58.
Rd7+ {[%clk 0:00:22.8]} 58... Kg6 {[%clk 0:01:04.4]} 59. Rd6+ {[%clk 0:00:24.3]}
59... Kg7 {[%clk 0:01:04.9]} 60. Ra6 {[%clk 0:00:25.7]} 60... Nb4 {[%clk
0:01:06.2]} 61. Rxa5 {[%clk 0:00:27.1]} 61... Nd3+ {[%clk 0:01:07.6]} 62. Kd2
{[%clk 0:00:26.6]} 62... Nf2 {[%clk 0:01:08.9]} 63. Rxf5 {[%clk 0:00:27.3]}
63... Nh1 {[%clk 0:01:10.8]} 64. Ke3 {[%clk 0:00:26.4]} 64... Kg6 {[%clk
0:01:11.8]} 65. Rg5+ {[%clk 0:00:25.4]} 65... Kf6 {[%clk 0:01:12.9]} 66. c5
{[%clk 0:00:25]} 1-0

[Event "*** Titled Tuesday Blitz"]
[Site "Chess.com"]
[Date "2018.09.04"]
[Round "9"]
[White "oskariot"]
[Black "Cryptochess"]
[Result "0-1"]
[WhiteElo "2500"]
[BlackElo "2545"]
[TimeControl "180+2"]
[EndTime "15:41:17 PDT"]
[Termination "Cryptochess won on time"]

1. c4 {[%clk 0:02:57.6]} 1... Nf6 {[%clk 0:02:55.5]} 2. g3 {[%clk 0:02:58]} 2...
e6 {[%clk 0:02:54.3]} 3. Bg2 {[%clk 0:02:58.3]} 3... d5 {[%clk 0:02:56]} 4. Nf3
{[%clk 0:02:58.7]} 4... dxc4 {[%clk 0:02:57.2]} 5. Qa4+ {[%clk 0:02:58.3]} 5...
c6 {[%clk 0:02:58.8]} 6. Qxc4 {[%clk 0:02:59.6]} 6... b5 {[%clk 0:03:00.5]} 7.
Qc2 {[%clk 0:03:00.5]} 7... Bb7 {[%clk 0:03:02.2]} 8. a4 {[%clk 0:03:00.6]} 8...
Nd5 {[%clk 0:02:41]} 9. O-O {[%clk 0:02:50.2]} 9... Nd7 {[%clk 0:02:39.9]} 10.
Nc3 {[%clk 0:02:47.8]} 10... b4 {[%clk 0:02:37.8]} 11. Ne4 {[%clk 0:02:19]}
11... c5 {[%clk 0:02:33.5]} 12. a5 {[%clk 0:02:13.1]} 12... Be7 {[%clk 0:02:28]}
13. a6 {[%clk 0:02:08]} 13... Bc6 {[%clk 0:02:23.1]} 14. Nd4 {[%clk 0:02:04.4]}
14... cxd4 {[%clk 0:02:08.4]} 15. Qxc6 {[%clk 0:02:06.3]} 15... O-O {[%clk
0:02:08.9]} 16. d3 {[%clk 0:01:54.6]} 16... Rc8 {[%clk 0:02:05.6]} 17. Qb7
{[%clk 0:01:42.7]} 17... Rc7 {[%clk 0:01:43.2]} 18. Qb5 {[%clk 0:01:40.8]} 18...
N7b6 {[%clk 0:01:41.5]} 19. Qa5 {[%clk 0:01:04.4]} 19... b3 {[%clk 0:01:22.5]}
20. Qe1 {[%clk 0:00:27.1]} 20... Rc2 {[%clk 0:01:11.7]} 21. Nd2 {[%clk
0:00:23.8]} 21... Bb4 {[%clk 0:00:53.6]} 22. Qd1 {[%clk 0:00:24.8]} 22... Bxd2
{[%clk 0:00:54.4]} 23. Bxd2 {[%clk 0:00:26.7]} 23... Qc7 {[%clk 0:00:46.3]} 24.
Ba5 {[%clk 0:00:22.9]} 24... Qc5 {[%clk 0:00:31.9]} 25. Ra3 {[%clk 0:00:05.1]}
25... Qb5 {[%clk 0:00:27.6]} 26. Bxb6 {[%clk 0:00:04.7]} 26... Nxb6 {[%clk
0:00:26.6]} 27. Qb1 {[%clk 0:00:04.1]} 27... Rfc8 {[%clk 0:00:22]} 28. Bf3
{[%clk 0:00:04.8]} 28... g6 {[%clk 0:00:17.8]} 29. h4 {[%clk 0:00:05.7]} 29...
h5 {[%clk 0:00:18]} 30. Kg2 {[%clk 0:00:06.8]} 30... Kg7 {[%clk 0:00:18.5]} 31.
Rd1 {[%clk 0:00:06.9]} 31... Nd7 {[%clk 0:00:19.4]} 32. Qa1 {[%clk 0:00:06.6]}
32... Qb6 {[%clk 0:00:13.5]} 33. Ra4 {[%clk 0:00:06.2]} 33... Ne5 {[%clk
0:00:13.9]} 34. Bb7 {[%clk 0:00:07.4]} 34... R8c7 {[%clk 0:00:11.9]} 35. Re1
{[%clk 0:00:08.5]} 35... Rd2 {[%clk 0:00:10]} 36. Qa3 {[%clk 0:00:06.6]} 36...
Rcc2 {[%clk 0:00:05.9]} 37. Rb4 {[%clk 0:00:07.7]} 37... Qc7 {[%clk 0:00:07.1]}
38. Qxb3 {[%clk 0:00:08.6]} 38... Rxe2 {[%clk 0:00:08.7]} 39. Rxe2 {[%clk
0:00:09.2]} 39... Rxe2 {[%clk 0:00:10.6]} 40. Rxd4 {[%clk 0:00:09.6]} 40... Ng4
{[%clk 0:00:10.8]} 41. Rf4 {[%clk 0:00:06.7]} 41... e5 {[%clk 0:00:08.7]} 42.
Rf3 {[%clk 0:00:05]} 42... f6 {[%clk 0:00:06.5]} 43. Qc3 {[%clk 0:00:03.7]}
43... Qb6 {[%clk 0:00:07]} 0-1

[Event "*** Titled Tuesday Blitz"]
[Site "Chess.com"]
[Date "2018.09.04"]
[Round "9"]
[White "JonahWillow"]
[Black "wannabe2700"]
[Result "1-0"]
[WhiteElo "2736"]
[BlackElo "2588"]
[TimeControl "180+2"]
[EndTime "15:41:17 PDT"]
[Termination "JonahWillow won by resignation"]

1. Nc3 {[%clk 0:03:01.9]} 1... d5 {[%clk 0:02:59.4]} 2. e4 {[%clk 0:03:02.8]}
2... d4 {[%clk 0:02:59.4]} 3. Nce2 {[%clk 0:03:03.8]} 3... e5 {[%clk 0:03:00.8]}
4. Ng3 {[%clk 0:03:04.8]} 4... Nf6 {[%clk 0:03:01.3]} 5. Bc4 {[%clk 0:03:00.9]}
5... Bd6 {[%clk 0:02:59.3]} 6. d3 {[%clk 0:02:57.9]} 6... O-O {[%clk 0:02:56.9]}
7. N1e2 {[%clk 0:02:48.1]} 7... c5 {[%clk 0:02:54.6]} 8. O-O {[%clk 0:02:47.8]}
8... Nc6 {[%clk 0:02:55.6]} 9. a3 {[%clk 0:02:48.2]} 9... h5 {[%clk 0:02:51]}
10. f4 {[%clk 0:02:06.6]} 10... h4 {[%clk 0:02:51.2]} 11. Nh1 {[%clk 0:02:07]}
11... exf4 {[%clk 0:02:36.5]} 12. Nxf4 {[%clk 0:02:05.7]} 12... Ne5 {[%clk
0:02:29.2]} 13. Ba2 {[%clk 0:01:59.2]} 13... Nfg4 {[%clk 0:02:28.8]} 14. h3
{[%clk 0:01:49.1]} 14... Ne3 {[%clk 0:02:29.3]} 15. Bxe3 {[%clk 0:01:48.2]}
15... dxe3 {[%clk 0:02:31.2]} 16. Qe1 {[%clk 0:01:28.7]} 16... Qg5 {[%clk
0:02:03.4]} 17. Qxe3 {[%clk 0:01:12]} 17... Ng6 {[%clk 0:02:03.6]} 18. Nd5
{[%clk 0:01:12.3]} 18... Qe5 {[%clk 0:02:04.5]} 19. Kf2 {[%clk 0:01:09.3]} 19...
Qxb2 {[%clk 0:01:58.8]} 20. Qg5 {[%clk 0:01:03.9]} 20... Qxc2+ {[%clk
0:01:15.3]} 21. Kg1 {[%clk 0:01:04.2]} 21... Be6 {[%clk 0:01:11.5]} 22. Nf6+
{[%clk 0:00:51.4]} 22... gxf6 {[%clk 0:01:11]} 23. Rxf6 {[%clk 0:00:53.3]} 23...
Qb2 {[%clk 0:00:19.1]} 24. Rxg6+ {[%clk 0:00:39.5]} 24... fxg6 {[%clk 0:00:21]}
25. Qxg6+ {[%clk 0:00:40.8]} 25... Qg7 {[%clk 0:00:21.9]} 26. Bxe6+ {[%clk
0:00:41.6]} 26... Kh8 {[%clk 0:00:23.4]} 27. Qh5+ {[%clk 0:00:38]} 27... Qh7
{[%clk 0:00:24.7]} 28. Qg4 {[%clk 0:00:31.7]} 28... Rf4 {[%clk 0:00:22.1]} 29.
Qg5 {[%clk 0:00:31]} 29... Qg7 {[%clk 0:00:21.5]} 30. Qh5+ {[%clk 0:00:30.3]}
30... Qh7 {[%clk 0:00:22.9]} 31. Qg5 {[%clk 0:00:32]} 31... Raf8 {[%clk
0:00:21.5]} 32. Bf5 {[%clk 0:00:31.2]} 32... R4xf5 {[%clk 0:00:18.1]} 33. exf5
{[%clk 0:00:33.1]} 33... Be5 {[%clk 0:00:17.8]} 34. Rf1 {[%clk 0:00:33.3]} 34...
Bd4+ {[%clk 0:00:18.8]} 35. Kh2 {[%clk 0:00:32.4]} 35... Rg8 {[%clk 0:00:17.4]}
36. Qf4 {[%clk 0:00:32]} 36... Re8 {[%clk 0:00:16.4]} 37. Qg4 {[%clk 0:00:23.8]}
37... Qc7+ {[%clk 0:00:13.2]} 38. g3 {[%clk 0:00:22.9]} 38... hxg3+ {[%clk
0:00:12.6]} 39. Nxg3 {[%clk 0:00:24.8]} 39... Be5 {[%clk 0:00:08.3]} 40. h4
{[%clk 0:00:23.2]} 40... Rg8 {[%clk 0:00:05.4]} 41. Qh5+ {[%clk 0:00:24.5]}
41... Qh7 {[%clk 0:00:06.3]} 42. Qxh7+ {[%clk 0:00:24.4]} 42... Kxh7 {[%clk
0:00:08.2]} 43. Rf3 {[%clk 0:00:26.3]} 43... b5 {[%clk 0:00:05.2]} 44. d4 {[%clk
0:00:21.8]} 44... Rxg3 {[%clk 0:00:02.2]} 45. Rxg3 {[%clk 0:00:20]} 45... Bxg3+
{[%clk 0:00:04.1]} 46. Kxg3 {[%clk 0:00:20.6]} 46... cxd4 {[%clk 0:00:02.8]} 47.
Kf4 {[%clk 0:00:21.4]} 47... a5 {[%clk 0:00:04.3]} 48. Ke4 {[%clk 0:00:20.9]}
48... b4 {[%clk 0:00:05.7]} 49. axb4 {[%clk 0:00:20.2]} 49... a4 {[%clk
0:00:07.6]} 50. Kxd4 {[%clk 0:00:21.6]} 50... a3 {[%clk 0:00:09.2]} 51. Kc3
{[%clk 0:00:23.1]} 51... a2 {[%clk 0:00:10.3]} 52. Kb2 {[%clk 0:00:25]} 52...
a1=Q+ {[%clk 0:00:11.2]} 53. Kxa1 {[%clk 0:00:26.1]} 1-0

[Event "*** Titled Tuesday Blitz"]
[Site "Chess.com"]
[Date "2018.09.04"]
[Round "9"]
[White "tony15051987"]
[Black "area_5"]
[Result "1-0"]
[WhiteElo "2470"]
[BlackElo "2564"]
[TimeControl "180+2"]
[EndTime "15:41:28 PDT"]
[Termination "tony15051987 won on time"]

1. Nf3 {[%clk 0:03:00.6]} 1... e6 {[%clk 0:03:00.2]} 2. c4 {[%clk 0:03:00.2]}
2... g5 {[%clk 0:02:59.8]} 3. h3 {[%clk 0:02:56.6]} 3... Bg7 {[%clk 0:03:00.1]}
4. d4 {[%clk 0:02:56.3]} 4... h6 {[%clk 0:03:01.1]} 5. Nc3 {[%clk 0:02:56.9]}
5... d5 {[%clk 0:02:59.2]} 6. e4 {[%clk 0:02:50.8]} 6... dxe4 {[%clk 0:02:56.9]}
7. Nxe4 {[%clk 0:02:51.6]} 7... Nc6 {[%clk 0:02:58.6]} 8. d5 {[%clk 0:02:45]}
8... exd5 {[%clk 0:02:22.8]} 9. cxd5 {[%clk 0:02:45.4]} 9... Qe7 {[%clk
0:02:24.1]} 10. dxc6 {[%clk 0:01:45.2]} 10... Qxe4+ {[%clk 0:02:22.7]} 11. Be2
{[%clk 0:01:45.9]} 11... Qxc6 {[%clk 0:02:22.5]} 12. O-O {[%clk 0:01:38.4]}
12... Ne7 {[%clk 0:02:22.9]} 13. Nd4 {[%clk 0:01:37.6]} 13... Qd7 {[%clk
0:02:22.6]} 14. Be3 {[%clk 0:01:33.2]} 14... O-O {[%clk 0:02:23.3]} 15. Rb1
{[%clk 0:00:48.3]} 15... c5 {[%clk 0:02:23.2]} 16. Nb5 {[%clk 0:00:46.6]} 16...
Qxd1 {[%clk 0:02:24]} 17. Rfxd1 {[%clk 0:00:47.4]} 17... Bf5 {[%clk 0:02:23.7]}
18. Bd3 {[%clk 0:00:44.7]} 18... Bxd3 {[%clk 0:02:23.4]} 19. Rxd3 {[%clk
0:00:45.6]} 19... b6 {[%clk 0:02:24.7]} 20. Rd7 {[%clk 0:00:40.9]} 20... Nc6
{[%clk 0:02:25.1]} 21. b3 {[%clk 0:00:39.4]} 21... a6 {[%clk 0:02:22.9]} 22. Nc7
{[%clk 0:00:38.7]} 22... Ra7 {[%clk 0:02:22.8]} 23. Rbd1 {[%clk 0:00:38.1]}
23... Nd4 {[%clk 0:02:22.8]} 24. Bxd4 {[%clk 0:00:35.6]} 24... Bxd4 {[%clk
0:02:21.6]} 25. Re1 {[%clk 0:00:34.8]} 25... Bf6 {[%clk 0:02:15.6]} 26. Ne8
{[%clk 0:00:31.3]} 26... Rxd7 {[%clk 0:02:11.3]} 27. Nxf6+ {[%clk 0:00:31.9]}
27... Kg7 {[%clk 0:02:13.2]} 28. Nxd7 {[%clk 0:00:32.6]} 28... Rd8 {[%clk
0:02:15.1]} 29. Nxb6 {[%clk 0:00:33.3]} 29... Rd2 {[%clk 0:02:17]} 30. a4 {[%clk
0:00:33.8]} 30... Rb2 {[%clk 0:02:16.2]} 31. Re3 {[%clk 0:00:34.7]} 31... f5
{[%clk 0:02:17.3]} 32. Nc4 {[%clk 0:00:35.1]} 32... Rb1+ {[%clk 0:02:17.7]} 33.
Kh2 {[%clk 0:00:35.5]} 33... f4 {[%clk 0:02:19.1]} 34. Rd3 {[%clk 0:00:35.9]}
34... Kf6 {[%clk 0:02:18.2]} 35. a5 {[%clk 0:00:36.5]} 35... h5 {[%clk
0:02:17.8]} 36. Rd6+ {[%clk 0:00:37]} 36... Kf5 {[%clk 0:02:19]} 37. Rxa6 {[%clk
0:00:37.5]} 37... g4 {[%clk 0:02:19.9]} 38. hxg4+ {[%clk 0:00:37.8]} 38... hxg4
{[%clk 0:02:21.2]} 39. Rb6 {[%clk 0:00:37.4]} 39... Rf1 {[%clk 0:02:21.1]} 40.
a6 {[%clk 0:00:37.2]} 40... Rxf2 {[%clk 0:02:22.4]} 41. a7 {[%clk 0:00:32.8]}
41... Ra2 {[%clk 0:02:23]} 42. Nd6+ {[%clk 0:00:19.7]} 42... Kg5 {[%clk
0:02:17.3]} 43. Ne4+ {[%clk 0:00:18.9]} 43... Kf5 {[%clk 0:02:18.3]} 44. Nd6+
{[%clk 0:00:18.6]} 44... Kg5 {[%clk 0:02:18.8]} 45. Ne4+ {[%clk 0:00:12.4]}
45... Kf5 {[%clk 0:02:19.4]} 46. Nd6+ {[%clk 0:00:04.9]} 46... Ke5 {[%clk
0:02:07.5]} 47. Nf7+ {[%clk 0:00:05.6]} 47... Ke4 {[%clk 0:02:08]} 48. Re6+
{[%clk 0:00:06]} 48... Kf5 {[%clk 0:02:08.1]} 49. Re7 {[%clk 0:00:06.6]} 49...
Ra1 {[%clk 0:02:03.4]} 50. Nd6+ {[%clk 0:00:06.3]} 50... Kg5 {[%clk 0:02:04.6]}
51. Re5+ {[%clk 0:00:07.1]} 1-0